bitfinex/quotes_ETHUSD_20240729
["timestamp","ask_amount","ask_price","bid_price","bid_amount"]
[1722220406788,0.55,3322.6,3321.9,2.40819]
[1722220407085,0.55,3322.6,3322.2,2.40801]
[1722220407291,3.55,3322.9,3321.6,2.40846]
[1722220407597,0.55,3322.9,3322.3,0.0395944]
[1722220407762,3.55,3322.9,3321.6,2.40846]
[1722220407965,3.55,3322.9,3322.4,0.03951921]
[1722220408182,4.58188754,3322.9,3321.6,2.40846]
[1722220408408,2.40783,3322.5,3321.6,2.40846]
[1722220408553,0.55,3322.4,3321.8,2.40832]
[1722220408751,0.55,3322.4,3321.9,2.40825]
[1722220408951,0.55,3322.4,3321.9,0.28476202]
[1722220409208,0.55,3322.7,3322.0,2.40812]
[1722220409364,3.0,3322.9,3322.3,2.40796]
[1722220409573,0.55,3322.8,3322.3,2.40796]
[1722220409751,2.02885536,3323.0,3322.4,0.03955641]
[1722220409951,2.02885536,3323.0,3322.4,2.44744641]
[1722220410213,2.02885536,3323.0,3322.4,0.28430105]
[1722220410349,2.02885536,3323.0,3322.4,0.03955641]
[1722220410550,2.02885536,3323.0,3321.9,2.65306957]
[1722220410847,2.40753,3322.9,3321.9,0.24482957]
[1722220411172,2.40753,3322.9,3322.0,0.03979963]
[1722220411365,2.02885536,3323.0,3321.6,2.40846]
[1722220411564,2.40761,3322.8,3322.1,0.03972441]
[1722220411773,2.40795,3322.4,3321.4,11.10602482]
[1722220411973,2.40795,3322.4,3322.2,0.03964921]
[1722220412251,0.55,3322.3,3321.6,2.40847]
[1722220412573,0.55,3322.3,3321.7,0.04002529]
[1722220412771,2.40804,3322.2,3321.7,0.04002529]
[1722220413112,4.109,3322.3,3321.4,8.10601482]
[1722220413113,0.55,3322.1,3321.4,8.10601482]
[1722220413251,0.55,3322.3,3321.8,0.03995006]
[1722220413600,0.55,3322.6,3321.8,2.40829]
[1722220413828,3.559,3322.8,3322.2,2.40798]
[1722220414026,5.96667,3322.8,3321.9,0.03987484]
[1722220414223,5.96667,3322.8,3322.3,0.03963881]
[1722220414224,2.40768,3322.7,3322.3,0.03963881]
[1722220414506,2.40776,3322.6,3321.7,2.40839]
[1722220414721,2.40776,3322.6,3322.4,0.03956361]
[1722220414722,2.40784,3322.5,3322.4,0.03956361]
[1722220414879,2.40784,3322.5,3321.5,2.40855]
[1722220415076,2.40784,3322.5,3321.4,5.69740482]
[1722220415077,2.40806,3322.2,3321.6,0.04015933]
[1722220415292,0.55,3322.4,3321.5,2.40854]
[1722220415293,2.95794,3322.4,3321.5,2.40854]
[1722220415509,2.95794,3322.4,3321.7,0.0400841]
[1722220415510,2.40809,3322.2,3321.7,0.0400841]
[1722220415721,2.40799,3322.3,3321.4,5.69740482]
[1722220416015,0.55,3322.2,3321.8,0.04000887]
[1722220416175,0.55,3322.2,3321.5,2.40854]
[1722220416384,0.55,3322.2,3321.9,0.03993365]
[1722220416682,2.95805,3322.2,3322.0,0.03985843]
[1722220417022,2.4082,3322.0,3321.4,6.56498735]
[1722220417302,2.95808,3322.2,3321.5,0.65649874]
[1722220417555,2.95808,3322.2,3321.5,0.6967333]
[1722220418015,0.55,3322.2,3321.5,0.6967333]
[1722220418172,0.55,3322.3,3321.5,0.6967333]
[1722220418366,0.55,3322.3,3321.6,0.63941381]
[1722220418602,3.559,3322.8,3321.9,2.40821]
[1722220418800,2.40768,3322.7,3321.8,2.40832]
[1722220419005,2.40768,3322.7,3322.0,0.03994487]
[1722220419271,2.40776,3322.6,3321.9,0.52168709]
[1722220419471,2.40776,3322.6,3322.1,0.03986966]
[1722220419699,2.40787,3322.5,3322.0,0.03994487]
[1722220420019,2.40787,3322.5,3321.6,3.04786381]
[1722220420020,2.95789,3322.4,3322.2,0.03979445]
[1722220420172,2.95789,3322.4,3322.1,0.03983965]
[1722220420173,2.40789,3322.4,3322.1,0.03983965]
[1722220420369,2.40789,3322.4,3321.6,3.04786381]
[1722220420370,0.55,3322.3,3321.6,3.04786381]
[1722220420700,2.95797,3322.3,3322.2,0.03976444]
[1722220420899,2.95797,3322.3,3321.6,0.63941381]
[1722220421674,2.95797,3322.3,3321.7,0.04014053]
[1722220422431,0.55,3322.3,3320.9,3.0]
[1722220422650,2.95797,3322.3,3321.8,0.0400653]
[1722220422858,2.95797,3322.3,3321.3,2.40867]
[1722220422859,0.55,3322.3,3321.3,2.40867]
[1722220423057,0.55,3322.4,3321.4,0.240867]
[1722220423341,2.40801,3322.3,3321.4,0.28125123]
[1722220423510,0.55,3322.2,3321.4,2.44900423]
[1722220424308,0.55,3322.2,3321.4,0.04038423]
[1722220424512,2.40831,3321.9,3321.4,0.04038423]
[1722220424705,0.55,3321.8,3321.1,2.40883]
[1722220424914,2.40819,3322.0,3321.5,0.040309]
[1722220425153,0.55,3321.9,3321.2,2.40874]
[1722220425351,0.55,3321.9,3321.6,0.04023376]
[1722220425566,0.55,3321.9,3321.3,0.481757]
[1722220425759,0.55,3321.9,3321.7,0.04015853]
[1722220425959,0.55,3321.9,3321.3,0.481757]
[1722220426115,0.55,3321.9,3321.8,0.0400833]
[1722220426310,0.55,3321.9,3321.2,2.40874]
[1722220426656,0.55,3321.9,3321.8,0.0400833]
[1722220426819,0.55,3321.9,3321.3,2.40868]
[1722220427015,0.55,3322.1,3321.4,0.481742]
[1722220427216,3.0,3322.5,3321.6,2.40846]
[1722220427217,0.55,3322.3,3321.6,2.40846]
[1722220427525,2.95792,3322.4,3321.7,0.04019094]
[1722220427745,2.40792,3322.4,3321.7,0.04019094]
[1722220427933,0.55,3322.3,3321.5,2.40849]
[1722220428131,0.55,3322.3,3321.6,0.28111517]
[1722220429132,2.95782,3322.5,3321.7,2.4084]
[1722220429333,2.95782,3322.5,3321.8,0.04011572]
[1722220430566,2.95782,3322.5,3321.9,0.04004049]
[1722220430772,2.95782,3322.5,3321.7,0.5057829]
[1722220430917,2.95782,3322.5,3321.8,0.04011572]
[1722220431123,2.40789,3322.4,3321.8,0.04011572]
[1722220431325,0.55,3322.3,3321.8,0.04011572]
[1722220431516,0.55,3322.3,3321.8,0.31952176]
[1722220431721,0.55,3322.3,3321.7,0.5057829]
[1722220431722,2.40733,3323.2,3322.0,2.40817]
[1722220431936,2.40739,3323.1,3322.1,0.03982165]
[1722220432181,7.43632536,3323.0,3322.1,0.03982165]
[1722220432325,2.40761,3322.8,3322.1,0.03982165]
[1722220432525,2.40761,3322.8,3321.8,2.40833]
[1722220432526,3.0,3322.9,3321.8,2.40833]
[1722220432743,2.40765,3322.8,3321.9,1.06033348]
[1722220432986,2.40765,3322.8,3322.0,0.03989206]
[1722220433144,0.55,3322.7,3322.0,0.03989206]
[1722220433867,2.40784,3322.5,3322.0,0.03989206]
[1722220434166,0.55,3322.4,3322.0,0.03989206]
[1722220434369,0.55,3322.4,3321.7,5.69740482]
[1722220434587,2.95783,3322.5,3321.7,5.69740482]
[1722220434887,2.95783,3322.5,3321.8,0.0400425]
[1722220435043,2.40789,3322.4,3321.8,0.0400425]
[1722220435245,0.55,3322.3,3321.8,0.0400425]
[1722220435612,0.55,3322.3,3321.3,4.75268]
[1722220435782,0.55,3322.3,3321.9,0.03996248]
[1722220436142,0.55,3322.3,3321.4,0.475268]
[1722220436509,2.40811,3322.1,3321.5,0.04026339]
[1722220436695,0.55,3322.0,3321.5,0.04026339]
[1722220436845,0.55,3322.0,3321.1,11.10622482]
[1722220437046,0.55,3322.0,3321.6,0.04018816]
[1722220437352,0.55,3322.0,3321.7,0.04011293]
[1722220437686,2.95811,3322.1,3321.1,2.40878]
[1722220437898,2.95811,3322.1,3321.8,0.0400377]
[1722220437899,2.40811,3322.1,3321.8,0.0400377]
[1722220438039,0.55,3322.0,3321.3,2.40867]
[1722220438243,2.95825,3322.0,3321.9,0.03996248]
[1722220438500,2.95812,3322.1,3321.2,2.949628]
[1722220438983,0.55,3322.1,3321.3,2.44908387]
[1722220439192,2.95812,3322.1,3321.4,0.53987119]
[1722220439353,2.95812,3322.1,3321.5,0.04026339]
[1722220440198,2.67,3321.6,3321.5,0.04026339]
[1722220440403,2.67,3321.6,3320.8,2.40901]
[1722220440547,0.55,3321.5,3320.9,0.0407449]
[1722220440849,0.55,3321.5,3321.0,0.24497549]
[1722220441050,2.40827,3321.9,3321.1,2.40881]
[1722220441290,0.55,3321.8,3321.1,2.44940438]
[1722220441691,0.55,3321.9,3321.1,2.44940438]
[1722220442171,0.55,3321.9,3321.1,2.44937438]
[1722220442385,0.55,3321.9,3321.2,0.26943499]
[1722220442597,2.40798,3322.3,3321.3,2.40868]
[1722220442812,2.67,3322.4,3321.5,2.40848]
[1722220442956,2.67,3322.4,3321.6,0.04025297]
[1722220443172,2.67,3322.4,3321.7,0.2448733]
[1722220443393,2.67,3322.4,3321.9,2.40824]
[1722220443580,2.67,3322.4,3322.0,0.03993047]
[1722220443779,2.67,3322.4,3322.0,2.44811047]
[1722220444106,2.67,3322.4,3322.0,0.03993047]
[1722220444253,2.02885536,3323.0,3322.2,2.40797]
[1722220444456,2.40754,3322.9,3322.3,0.240797]
[1722220444763,2.4078,3322.6,3322.3,0.03971084]
[1722220444951,2.67,3322.8,3322.3,0.03971084]
[1722220445155,2.67,3322.8,3322.1,2.4081]
[1722220445595,2.67,3322.8,3322.2,0.03978605]
[1722220445803,2.67,3322.8,3322.3,0.24478861]
[1722220446106,2.67,3322.8,3322.4,0.03963565]
[1722220446691,2.67,3322.8,3322.1,2.40811]
[1722220446850,2.67,3322.8,3321.9,2.4418]
[1722220446851,2.67,3322.8,3322.5,0.03949804]
[1722220447052,0.55,3322.7,3321.5,4.72063]
[1722220447255,0.55,3322.7,3321.7,0.56974048]
[1722220447507,0.55,3322.7,3321.7,0.6098402]
[1722220447508,2.67,3322.4,3321.7,0.6098402]
[1722220447982,0.55,3322.3,3321.7,0.6098402]
[1722220448177,0.55,3322.3,3321.7,0.04009972]
[1722220448362,2.40817,3322.1,3321.7,0.04009972]
[1722220448564,0.55,3322.0,3321.8,0.0400245]
[1722220448974,2.40804,3322.2,3321.9,0.03994928]
[1722220449169,0.55,3322.1,3321.9,0.03994928]
[1722220449407,0.55,3322.1,3321.5,2.40847]
[1722220449703,0.55,3322.3,3321.7,2.40838]
[1722220450201,2.40761,3322.8,3321.9,2.40825]
[1722220450412,3.58846115,3322.7,3321.8,0.0400245]
[1722220450710,2.95775,3322.6,3321.9,0.03994928]
[1722220450991,0.55,3322.6,3322.0,2.40813]
[1722220451353,0.55,3322.6,3321.9,0.24483293]
[1722220451354,0.55,3322.6,3322.1,0.03979885]
[1722220451790,0.55,3322.6,3322.2,0.03972364]
[1722220452290,2.67,3322.8,3322.0,2.40813]
[1722220452291,0.55,3322.7,3322.0,2.40813]
[1722220452599,2.95768,3322.7,3322.0,0.240813]
[1722220452818,2.95768,3322.7,3322.1,0.03979885]
[1722220453523,0.55,3322.7,3322.1,0.03979885]
[1722220454099,2.40775,3322.6,3322.1,0.03979885]
[1722220454296,0.55,3322.5,3322.1,0.03979885]
[1722220454726,2.95769,3322.7,3322.1,0.30868504]
[1722220454933,2.95768,3322.7,3322.1,0.03979885]
[1722220455082,0.55,3322.7,3322.1,0.03979885]
[1722220455291,0.55,3322.7,3322.0,2.40816]
[1722220455630,0.55,3322.7,3322.1,0.03975561]
[1722220455997,0.55,3322.7,3322.1,0.24479456]
[1722220456320,0.55,3322.7,3322.2,0.03968041]
[1722220456695,2.95768,3322.7,3322.2,0.03968041]
[1722220457024,2.95768,3322.7,3321.6,2.40842]
[1722220457025,2.67,3322.6,3321.7,2.40834]
[1722220457325,2.67,3322.6,3321.8,0.58081406]
[1722220457326,2.40782,3322.5,3321.8,0.58081406]
[1722220457482,2.4079,3322.4,3321.8,0.03998006]
[1722220457683,2.67,3322.2,3321.5,2.40854]
[1722220457927,2.67,3322.2,3321.9,0.03990484]
[1722220458140,2.67,3322.2,3321.3,2.40867]
[1722220458141,0.55,3322.1,3321.3,2.40867]
[1722220458302,0.55,3322.1,3322.0,0.03982963]
[1722220458510,0.55,3322.1,3321.5,2.40851]
[1722220458697,0.55,3322.1,3322.0,0.03982963]
[1722220458906,0.55,3322.1,3321.5,0.481718]
[1722220459102,5.43948,3322.1,3322.0,0.03985723]
[1722220459439,2.40841,3321.7,3321.1,5.69740482]
[1722220459601,2.40841,3321.7,3320.9,2.40892]
[1722220459602,0.55,3321.6,3320.9,2.40892]
[1722220459947,0.55,3321.6,3321.0,2.4089]
[1722220460090,0.55,3321.6,3321.0,2.44824238]
[1722220460293,0.55,3321.6,3321.1,2.89453624]
[1722220460495,2.4813,3322.1,3321.1,0.52498336]
[1722220460704,5.07784,3322.5,3321.5,2.4085]
[1722220460952,0.55,3322.3,3321.5,2.4085]
[1722220461234,0.55,3322.3,3321.6,2.36572564]
[1722220461235,0.36867587,3322.3,3321.6,2.36572564]
[1722220461435,2.67,3322.5,3321.6,2.44604564]
[1722220461638,2.67,3322.5,3321.6,0.03762564]
[1722220461791,2.67,3322.5,3321.7,2.40834]
[1722220461991,2.67,3322.5,3321.8,2.44574518]
[1722220462896,2.67,3322.5,3321.8,0.03747518]
[1722220462897,5.07788,3322.5,3321.8,0.03747518]
[1722220463165,2.67,3322.5,3321.8,2.40827]
[1722220463370,2.67,3322.5,3321.9,0.27822696]
[1722220463577,2.67,3322.5,3321.9,0.03739996]
[1722220464059,2.67,3322.5,3321.9,2.44565996]
[1722220464060,0.55,3322.4,3321.9,2.44565996]
[1722220464266,0.55,3322.4,3322.0,2.40812]
[1722220464653,0.55,3322.4,3321.8,2.40831]
[1722220464654,0.55,3322.4,3322.1,0.03724953]
[1722220465222,0.55,3322.4,3321.8,2.4083]
[1722220465223,0.55,3322.4,3321.9,2.4082]
[1722220465442,0.55,3322.4,3322.0,0.03732474]
[1722220466343,0.55,3322.4,3322.0,2.44550474]
[1722220467589,0.55,3322.4,3322.0,0.03732474]
[1722220468517,0.55,3322.4,3322.1,0.03724953]
[1722220468868,0.55,3322.6,3322.1,0.03724953]
[1722220469071,1.112762,3322.6,3322.1,0.03724953]
[1722220469267,1.112762,3322.6,3321.7,2.40838]
[1722220469472,1.112762,3322.6,3322.2,0.03593017]
[1722220469685,1.112762,3322.6,3322.0,2.40818]
[1722220469894,1.112762,3322.6,3322.3,0.03585496]
[1722220470106,1.112762,3322.6,3322.0,2.40818]
[1722220470412,1.112762,3322.6,3321.6,0.24461456]
[1722220470413,0.55,3322.6,3321.9,2.4082]
[1722220471006,2.95776,3322.6,3322.0,0.0359542]
[1722220471170,2.67,3322.3,3322.0,0.0359542]
[1722220471509,0.55,3322.2,3322.1,0.03586588]
[1722220471912,0.55,3322.2,3321.6,2.40846]
[1722220472229,0.55,3322.2,3322.1,0.03586588]
[1722220472731,0.55,3322.2,3321.8,2.40833]
[1722220472878,0.55,3322.2,3322.1,0.03590283]
[1722220473210,0.55,3322.2,3321.6,4.81688]
[1722220473416,0.55,3322.2,3322.1,0.03590283]
[1722220473610,0.55,3322.2,3321.7,2.40838]
[1722220473825,0.55,3322.2,3322.1,0.03590283]
[1722220474130,0.55,3322.2,3322.1,0.03588257]
[1722220474323,0.55,3322.2,3321.7,2.40838]
[1722220474534,2.67,3322.7,3322.1,0.03588257]
[1722220474832,0.55,3322.4,3322.0,2.40812]
[1722220475133,0.55,3322.6,3322.1,0.0358933]
[1722220476613,4.51395536,3323.0,3322.9,7.22259]
[1722220476614,2.02885536,3323.0,3322.9,7.22259]
[1722220476886,2.02885536,3323.0,3322.9,12.65917938]
[1722220477325,1.59185536,3323.0,3322.9,15.78895296]
[1722220477733,5.36e-06,3323.0,3322.9,15.06670938]
[1722220477955,5.36e-06,3323.0,3322.9,17.2956239]
[1722220478157,5.36e-06,3323.0,3322.9,14.8880939]
[1722220478337,5.36e-06,3323.0,3322.9,17.2956239]
[1722220478550,0.1517961,3323.3,3323.2,7.22193]
[1722220478761,0.1517961,3323.3,3323.2,10.944123]
[1722220478981,0.1517961,3323.3,3323.2,0.03506388]
[1722220479614,0.1517961,3323.3,3323.2,0.03495748]
[1722220479830,0.1517961,3323.3,3322.8,2.40759]
[1722220480018,0.1517961,3323.3,3322.9,0.03790671]
[1722220480432,0.1517961,3323.3,3322.6,5.40774]
[1722220480722,0.1517961,3323.3,3322.7,0.57613418]
[1722220480912,0.1517961,3323.3,3322.7,0.03536018]
[1722220481562,0.1517961,3323.3,3322.8,2.40753]
[1722220481722,0.1517961,3323.3,3322.7,0.06017542]
[1722220481918,0.1517961,3323.3,3323.1,2.40738]
[1722220482125,0.1517961,3323.3,3322.9,0.03790671]
[1722220482126,0.1517961,3323.3,3323.2,2.40731]
[1722220482383,0.1517961,3323.3,3323.2,2.68568752]
[1722220483035,0.1517961,3323.3,3323.2,5.09299752]
[1722220483339,2.433,3324.6,3323.2,5.09299752]
[1722220483340,0.00180357,3325.0,3323.2,5.09299752]
[1722220483543,0.00180357,3325.0,3324.9,4.81216]
[1722220484068,0.00180357,3325.0,3324.9,4.85134739]
[1722220484377,0.00180357,3325.0,3324.9,12.5655612]
[1722220484718,2.67,3325.9,3325.6,2.40556]
[1722220485230,3.551,3326.1,3325.7,0.04612409]
[1722220485433,0.1467961,3326.6,3325.6,2.40555]
[1722220485434,3.551,3326.3,3325.6,2.40555]
[1722220485649,0.1467961,3326.6,3325.7,0.28185285]
[1722220485815,0.1467961,3326.6,3325.7,0.04129785]
[1722220485816,3.551,3325.8,3325.7,0.04129785]
[1722220486017,3.551,3325.8,3324.9,2.3952]
[1722220486361,3.551,3325.8,3324.6,2.40626]
[1722220486362,3.551,3326.0,3325.0,0.04201436]
[1722220486657,3.551,3326.0,3324.9,2.46618166]
[1722220486827,5.95631,3326.0,3325.0,0.04201436]
[1722220487014,5.95631,3326.0,3324.5,2.3952]
[1722220487015,3.551,3325.5,3324.5,2.3952]
[1722220487215,3.551,3325.5,3324.8,2.40614]
[1722220487444,3.551,3325.5,3324.9,0.04632842]
[1722220487832,3.551,3325.5,3324.6,3.0]
[1722220488038,3.551,3325.0,3324.7,0.04655368]
[1722220488238,3.551,3325.0,3323.9,2.3989]
[1722220488439,3.551,3325.0,3323.3,2.40721]
[1722220488440,3.551,3324.5,3324.0,0.04734232]
[1722220488651,3.551,3324.5,3323.4,5.75755876]
[1722220488652,0.55,3324.4,3323.4,5.69740482]
[1722220488852,0.55,3324.4,3323.5,0.03992153]
[1722220489057,3.551,3324.9,3323.6,0.57373264]
[1722220489371,2.40532,3326.0,3323.8,2.3989]
[1722220489372,3.551,3325.5,3323.8,2.3989]
[1722220489531,3.551,3325.5,3324.4,2.40642]
[1722220489724,3.551,3325.5,3324.4,2.46656122]
[1722220489725,0.55,3325.4,3324.4,2.46656122]
[1722220489963,0.55,3325.4,3324.5,0.04252634]
[1722220490164,3.551,3325.0,3324.5,0.04252634]
[1722220490580,0.55,3324.9,3323.9,5.40675]
[1722220490784,0.55,3324.9,3324.6,0.0388886]
[1722220490983,0.55,3324.9,3324.1,0.0601565]
[1722220491187,3.551,3325.1,3324.6,2.40629]
[1722220491390,2.2884,3325.6,3324.6,2.40629]
[1722220491391,3.551,3325.6,3324.6,2.40629]
[1722220491549,3.551,3325.6,3324.7,0.28295053]
[1722220492075,0.1467961,3326.6,3324.8,0.06013966]
[1722220492278,0.1467961,3326.6,3325.0,2.40601]
[1722220492591,0.1467961,3326.6,3325.5,2.40563]
[1722220492959,0.1467961,3326.6,3325.6,0.05060024]
[1722220493162,0.1467961,3326.6,3325.7,0.24562302]
[1722220493404,0.0967961,3326.6,3325.7,0.24562302]
[1722220493584,0.0967961,3326.6,3325.8,0.05035008]
[1722220493906,3.551,3326.6,3325.8,0.05035008]
[1722220494264,3.551,3326.6,3325.6,2.40556]
[1722220494462,3.551,3327.1,3325.7,2.45593515]
[1722220494865,2.40471,3326.8,3325.7,2.45593515]
[1722220495092,5.40457,3327.0,3325.8,2.65101352]
[1722220495300,8.95557,3327.0,3325.9,2.40535]
[1722220495462,8.85557,3327.0,3325.9,2.45557501]
[1722220495667,2.40467,3326.9,3325.9,0.05022501]
[1722220495876,2.40478,3326.7,3325.9,0.05022501]
[1722220496080,2.40467,3326.9,3325.8,0.24559352]
[1722220496277,0.55,3326.8,3325.9,0.05021707]
[1722220496962,2.4048,3326.7,3325.9,0.05021707]
[1722220497158,0.55,3326.6,3325.9,0.05021707]
[1722220497365,0.55,3326.6,3325.6,2.40557]
[1722220497601,3.55,3326.6,3326.0,0.05009201]
[1722220497796,3.55,3326.6,3325.7,2.40544]
[1722220497974,0.55,3326.6,3326.1,0.04996695]
[1722220498177,0.55,3326.6,3325.8,0.240544]
[1722220498372,0.55,3326.6,3326.2,0.04984191]
[1722220498576,0.55,3326.6,3325.8,0.240544]
[1722220498980,0.55,3326.6,3325.9,0.05021707]
[1722220499302,0.55,3326.6,3325.9,0.31983718]
[1722220499303,2.95486,3326.6,3325.9,0.31983718]
[1722220499504,2.95486,3326.6,3325.9,0.05021707]
[1722220499892,2.95486,3326.6,3325.4,2.46583109]
[1722220499893,2.40495,3326.5,3325.4,2.46583109]
[1722220500098,2.405,3326.4,3326.0,0.05009201]
[1722220500405,0.55,3326.6,3325.3,5.69740482]
[1722220500406,2.95486,3326.6,3325.3,5.69740482]
[1722220500567,0.55,3326.6,3326.1,0.04996695]
[1722220500908,0.55,3326.6,3325.4,0.56974048]
[1722220501134,3.551,3327.0,3325.8,2.40537]
[1722220501273,3.551,3327.0,3326.0,2.40528]
[1722220501469,3.551,3327.0,3326.1,0.35662157]
[1722220501872,3.551,3327.0,3326.4,2.405]
[1722220502070,3.551,3327.5,3326.5,2.45436682]
[1722220502336,5.95522,3327.5,3326.5,2.45436682]
[1722220502612,4.87569,3327.8,3326.5,2.45436682]
[1722220502613,3.551,3327.0,3326.5,0.04946682]
[1722220502775,5.95557,3327.0,3326.5,0.04946682]
[1722220502985,2.4048,3326.7,3325.7,2.40548]
[1722220503186,2.40465,3326.9,3326.6,0.04934181]
[1722220503390,2.40465,3326.9,3326.0,2.40528]
[1722220503391,3.551,3327.5,3326.5,2.40486]
[1722220503624,3.551,3327.5,3326.7,0.04831016]
[1722220503781,3.551,3327.5,3326.9,2.40463]
[1722220503987,3.55317538,3328.0,3327.0,0.240463]
[1722220504287,3.55317538,3328.0,3327.0,0.04799264]
[1722220504288,3.551,3327.5,3327.0,0.04799264]
[1722220504491,2.40435,3327.3,3326.0,5.69740482]
[1722220504688,3.551,3326.9,3326.0,5.69740482]
[1722220504925,2.40479,3326.7,3326.0,5.69740482]
[1722220505534,3.551,3327.4,3326.2,2.40513]
[1722220505687,2.3835,3327.7,3326.2,2.40513]
[1722220505688,3.551,3327.6,3326.6,2.40482]
[1722220506047,5.95514,3327.6,3326.6,2.40482]
[1722220506191,3.551,3327.6,3326.7,0.240482]
[1722220506390,3.551,3327.1,3326.0,5.69740482]
[1722220506786,2.40424,3327.5,3326.2,2.40514]
[1722220507093,5.95514,3327.6,3326.6,2.40481]
[1722220507287,3.551,3327.6,3326.3,2.40505]
[1722220507487,2.40476,3326.8,3326.0,5.69740482]
[1722220507800,2.40472,3326.8,3326.0,5.69740482]
[1722220508027,2.40465,3326.9,3326.0,5.69740482]
[1722220508416,2.40471,3326.8,3326.0,5.69740482]
[1722220508614,2.40465,3326.9,3326.1,0.56974048]
[1722220509045,3.551,3327.1,3326.1,0.56974048]
[1722220509046,5.95556,3327.1,3326.1,0.56974048]
[1722220509356,3.551,3327.1,3326.1,3.56974048]
[1722220509516,0.55,3327.0,3326.1,0.56974048]
[1722220509855,2.95457,3327.0,3326.1,0.56974048]
[1722220510019,2.95457,3327.0,3326.2,0.62671453]
[1722220510216,2.40399,3327.8,3326.3,2.4118]
[1722220510449,3.551,3328.1,3326.5,2.40487]
[1722220510647,3.551,3328.1,3327.0,2.4045]
[1722220510854,2.40604538,3328.0,3326.7,3.0]
[1722220511162,0.00217538,3328.0,3327.0,2.40455]
[1722220511455,0.00217538,3328.0,3327.1,2.40448]
[1722220511657,0.00217538,3328.0,3327.2,0.240448]
[1722220512733,0.00217538,3328.0,3327.2,2.40436]
[1722220512932,0.00217538,3328.0,3326.8,3.0]
[1722220513137,0.00217538,3328.0,3327.0,2.40452]
[1722220513344,0.00217538,3328.0,3327.5,2.40418]
[1722220513555,0.00217538,3328.0,3327.2,2.40436]
[1722220513867,0.00217538,3328.0,3327.3,2.644766]
[1722220514029,0.00217538,3328.0,3327.3,0.240436]
[1722220514221,0.00217538,3328.0,3327.3,2.644766]
[1722220514620,0.00217538,3328.0,3327.3,0.240436]
[1722220514826,0.55217538,3328.0,3327.0,2.40456]
[1722220515355,0.55217538,3328.0,3327.2,2.4044]
[1722220515534,0.55217538,3328.0,3326.7,3.0]
[1722220515535,0.00217538,3328.0,3327.4,2.40427]
[1722220515730,0.00217538,3328.0,3327.6,2.40408]
[1722220515957,3.551,3328.1,3327.7,2.644458]
[1722220516161,3.551,3328.1,3327.7,0.240408]
[1722220516369,3.551,3328.1,3326.9,0.06009546]
[1722220516559,3.551,3328.1,3327.3,2.40433]
[1722220516763,3.551,3328.1,3327.4,2.40422]
[1722220516923,3.551,3328.1,3327.3,2.40434]
[1722220518262,4.81831,3328.5,3326.8,3.06009542]
[1722220518263,3.551,3327.6,3326.8,2.40469]
[1722220518554,3.551,3327.6,3326.9,0.482789]
[1722220518733,3.551,3327.6,3327.0,2.40456]
[1722220518937,5.95479,3328.1,3327.0,2.40456]
[1722220519166,2.95385,3328.0,3327.0,2.40456]
[1722220519373,2.40406,3327.7,3326.8,2.40469]
[1722220519594,2.40393,3327.9,3326.7,2.40478]
[1722220519875,2.40436,3327.3,3326.8,0.2645267]
[1722220520061,2.3486,3327.5,3326.6,0.240487]
[1722220520232,2.3486,3327.5,3325.9,5.69740482]
[1722220520233,0.55,3327.2,3325.9,8.10274482]
[1722220520436,0.55,3327.2,3326.1,2.40517]
[1722220520634,2.95431,3327.4,3326.4,2.405]
[1722220520879,0.55,3327.4,3326.5,2.4049]
[1722220521181,0.55,3327.4,3326.3,2.40506]
[1722220521182,3.551,3327.6,3326.9,2.40463]
[1722220521562,0.55,3327.5,3326.7,2.40478]
[1722220522066,0.55,3327.5,3326.6,0.24049]
[1722220522067,2.40435,3327.3,3326.6,0.24049]
[1722220522272,2.40435,3327.3,3326.3,2.40501]
[1722220522472,0.55,3327.2,3326.3,2.40501]
[1722220522657,0.55,3327.2,3326.4,2.405]
[1722220523044,0.55,3327.4,3326.5,2.40492]
[1722220523382,3.211,3327.4,3326.5,2.40492]
[1722220523679,3.211,3327.4,3326.3,1.11026048]
[1722220523894,2.4045,3327.1,3326.4,0.41102605]
[1722220524054,3.211,3327.0,3326.4,0.41102605]
[1722220524248,3.211,3327.0,3326.3,1.11026048]
[1722220524657,5.61557,3327.0,3326.3,1.11026048]
[1722220525314,2.40465,3326.9,3326.3,1.11026048]
[1722220525597,2.4383,3326.3,3325.0,12.42]
[1722220525892,2.4383,3326.3,3324.9,5.69740482]
[1722220525893,2.661,3325.4,3324.9,5.69740482]
[1722220526055,2.03272594,3325.4,3324.9,5.69740482]
[1722220526388,2.661,3325.8,3324.9,8.10344482]
[1722220526590,2.661,3326.2,3325.0,2.406]
[1722220526820,0.55,3326.1,3325.2,2.40586]
[1722220526947,0.55,3326.1,3325.1,2.40591]
[1722220527152,2.4383,3326.3,3325.0,0.06013592]
[1722220527350,2.4383,3326.9,3325.1,2.3589]
[1722220527593,2.4383,3326.9,3325.6,2.40556]
[1722220527800,2.40489,3326.6,3325.6,2.40556]
[1722220528124,2.40471,3326.8,3325.4,2.40571]
[1722220528125,3.551,3326.7,3325.4,2.40571]
[1722220528329,2.40493,3326.5,3325.4,2.40571]
[1722220528528,2.40505,3326.4,3325.5,0.540571]
[1722220528734,2.40486,3326.6,3325.5,0.540571]
[1722220529028,0.55,3326.5,3325.6,2.40551]
[1722220529331,0.55,3326.6,3325.7,2.40549]
[1722220529534,5.9558,3326.7,3325.8,0.240549]
[1722220529833,3.551,3326.2,3325.2,0.24190359]
[1722220530002,3.551,3326.2,3325.2,2.64775359]